bitfinex/quotes_ETHUSD_20260305
["timestamp","ask_amount","ask_price","bid_price","bid_amount"]
[1772701032301,1.68214605,2116.5,2116.1,3.68806035]
[1772701032502,1.68214605,2116.5,2116.1,2.50666487]
[1772701033016,3.49366696,2116.6,2116.1,2.50666487]
[1772701033215,1.18325118,2116.4,2116.1,2.50666487]
[1772701033718,1.18325118,2116.4,2116.1,0.16886064]
[1772701034888,2.85792017,2116.4,2116.1,0.16886064]
[1772701035714,0.002,2116.4,2116.2,2.33780423]
[1772701039123,0.002,2116.4,2116.1,1.35026865]
[1772701039722,1.18120491,2116.5,2116.1,1.35026865]
[1772701040020,0.002,2116.4,2116.1,3.50303608]
[1772701042402,0.002,2116.4,2116.1,1.35026865]
[1772701042599,4.64944611,2116.6,2116.2,2.15276743]
[1772701042806,0.002,2116.5,2116.2,2.15276743]
[1772701043408,1.65827092,2116.5,2116.2,2.15276743]
[1772701043615,1.65827092,2116.5,2116.3,0.001]
[1772701045332,2.83035795,2116.4,2116.1,0.16886064]
[1772701045516,1.64910677,2116.3,2116.1,0.16886064]
[1772701046611,2.82691406,2116.7,2116.2,2.15276743]
[1772701046808,1.64378998,2116.5,2116.1,0.16886064]
[1772701047304,1.18125118,2116.4,2116.1,0.16886064]
[1772701047512,1.64598561,2116.3,2116.1,0.16886064]
[1772701048830,1.813,2116.6,2116.1,0.16886064]
[1772701049002,4.72493667,2116.5,2116.1,0.16886064]
[1772701049530,4.93853835,2116.5,2116.1,0.16886064]
[1772701049710,0.21360168,2116.4,2116.1,0.16886064]
[1772701051827,1.39486235,2116.4,2116.1,0.16886064]
[1772701052034,1.815,2116.3,2116.1,2.52725771]
[1772701052199,1.815,2116.3,2116.1,0.16886064]
[1772701053003,1.18313956,2116.7,2116.2,1.18136282]
[1772701053004,0.002,2116.7,2116.2,1.18136282]
[1772701053199,0.20736681,2117.4,2116.4,2.35839707]
[1772701053200,0.20736681,2117.1,2116.4,2.35839707]
[1772701053812,1.38824581,2117.1,2116.6,2.35839707]
[1772701054015,0.20736681,2117.1,2116.6,2.35839707]
[1772701054235,1.38608348,2117.3,2116.6,2.35839707]
[1772701054531,1.815,2117.2,2116.6,2.35839707]
[1772701054735,0.20528998,2117.3,2116.6,2.35839707]
[1772701054924,1.815,2117.2,2116.6,2.35839707]
[1772701055800,1.815,2117.2,2116.8,2.35839707]
[1772701056205,2.01599764,2117.2,2116.8,2.35839707]
[1772701056510,0.20099764,2117.1,2116.6,3.53949254]
[1772701056913,0.002,2116.9,2116.5,3.54057455]
[1772701057326,0.002,2116.9,2116.6,2.35839707]
[1772701057935,0.19669367,2116.9,2116.5,0.001]
[1772701058323,0.19669367,2116.9,2116.5,2.35939707]
[1772701059238,0.19669367,2116.9,2116.5,0.001]
[1772701059829,0.19025319,2116.8,2116.5,0.001]
[1772701060842,0.19025319,2116.8,2116.3,0.001]
[1772701061242,0.19025319,2116.8,2116.2,1.34468664]
[1772701061243,0.19025319,2116.8,2116.2,0.16334595]
[1772701061735,0.19025319,2116.8,2115.8,0.001]
[1772701062224,0.18478757,2116.6,2115.8,0.001]
[1772701062419,0.18478757,2116.4,2115.8,0.001]
[1772701062610,1.18108376,2116.7,2115.8,0.001]
[1772701062611,1.815,2116.3,2115.9,2.35889707]
[1772701063239,0.18751645,2116.5,2115.9,2.35889707]
[1772701063544,1.815,2116.5,2115.9,2.35889707]
[1772701064444,1.815,2116.5,2116.1,2.35889707]
[1772701064650,3.18363713,2116.7,2116.1,2.35889707]
[1772701065850,0.18047894,2116.8,2116.1,2.35889707]
[1772701066037,2.99798017,2116.9,2116.1,2.35889707]
[1772701066220,3.17845911,2116.9,2116.1,2.35889707]
[1772701066421,0.18047894,2116.8,2116.3,2.35889707]
[1772701067329,1.99447894,2116.8,2116.3,2.35889707]
[1772701068551,3.17552273,2116.8,2116.3,3.54016486]
[1772701069346,0.17410381,2116.7,2116.3,2.35889707]
[1772701069646,0.17410381,2116.7,2116.1,2.35889707]
[1772701070029,0.17410381,2116.7,2116.1,3.54030968]
[1772701071058,1.35036453,2116.6,2116.5,0.001]
[1772701075156,3.16336453,2116.6,2116.5,0.001]
[1772701076656,1.1652233,2117.4,2116.6,2.22608536]
[1772701076831,1.18063754,2117.5,2116.6,2.22608536]
[1772701076832,1.1652233,2117.1,2116.6,2.22608536]
[1772701077041,1.1652233,2117.1,2116.5,0.001]
[1772701077241,1.1652233,2116.9,2116.5,0.001]
[1772701077439,1.814,2116.8,2116.5,0.001]
[1772701077643,1.1652233,2116.7,2116.5,0.001]
[1772701077859,2.40500564,2116.6,2116.5,0.001]
[1772701078058,1.18113956,2116.6,2116.5,0.001]
[1772701078370,1.18112922,2116.7,2116.5,0.001]
[1772701078528,4.72333008,2117.2,2116.5,2.22708536]
[1772701078529,2.40477205,2117.1,2116.5,2.22708536]
[1772701078732,1.814,2117.0,2116.5,2.22708536]
[1772701078947,1.22215667,2117.0,2116.5,2.22708536]
[1772701079232,1.814,2116.9,2116.5,2.22708536]
[1772701080365,1.814,2117.0,2116.7,2.22608536]
[1772701081345,1.816,2117.0,2116.7,2.22608536]
[1772701081966,1.816,2117.0,2116.3,0.001]
[1772701081967,0.80357579,2116.8,2116.3,0.001]
[1772701082264,2.39511511,2116.6,2116.3,0.001]
[1772701082665,1.21221394,2116.8,2116.4,2.22608536]
[1772701082962,3.02621394,2116.7,2116.3,0.001]
[1772701084158,0.002,2116.6,2116.3,0.001]
[1772701084666,1.18313956,2116.6,2116.3,0.001]
[1772701084964,2.39172395,2116.6,2116.3,0.001]
[1772701085469,2.39172395,2116.6,2116.4,0.001]
[1772701086268,1.206724,2116.5,2116.0,3.40755578]
[1772701086468,1.206724,2116.5,2116.1,0.001]
[1772701086837,1.18125118,2116.4,2116.1,0.001]
[1772701087173,1.18125118,2116.4,2116.1,2.22708536]
[1772701087469,2.38796249,2116.5,2116.1,2.22708536]
[1772701089274,2.38796249,2116.5,2115.9,2.22708536]
[1772701089275,2.33930523,2116.4,2115.9,2.22708536]
[1772701089797,2.33930523,2116.4,2115.9,0.001]
[1772701091243,3.52061222,2116.3,2115.9,0.001]
[1772701091538,4.15330523,2116.2,2115.9,0.001]
[1772701093868,1.18141864,2116.1,2115.9,0.001]
[1772701095902,5.33471015,2116.2,2115.9,0.001]
[1772701096345,1.814,2116.1,2115.9,0.001]
[1772701098366,2.99542957,2116.1,2115.9,0.001]
[1772701098571,5.3347348,2116.1,2115.9,0.001]
[1772701098774,4.72500609,2116.4,2116.0,2.24982952]
[1772701098982,0.002,2116.6,2116.0,2.24982952]
[1772701098983,5.90692114,2116.2,2116.0,2.24982952]
[1772701099188,4.22578913,2116.3,2115.9,0.001]
[1772701099479,10.13271027,2116.2,2115.9,0.001]
[1772701099640,4.22578913,2116.2,2115.9,0.001]
[1772701100169,4.22578913,2116.2,2116.1,0.001]
[1772701100674,1.815,2116.2,2116.1,0.001]
[1772701101277,10.13271027,2116.2,2116.1,0.001]
[1772701102059,5.4072187,2116.2,2116.1,0.001]
[1772701102547,2.99642957,2116.2,2116.1,0.001]
[1772701104183,1.816,2116.2,2116.1,2.25082952]
[1772701104557,0.002,2116.5,2116.2,2.24982952]
[1772701104756,7.72292114,2116.4,2116.2,2.24982952]
[1772701105063,1.816,2116.3,2116.2,2.24982952]
[1772701105370,6.45362015,2116.4,2116.2,2.24982952]
[1772701105573,1.816,2116.3,2116.2,2.24982952]
[1772701106377,0.002,2116.5,2116.2,2.24982952]
[1772701106654,1.817,2116.3,2116.2,2.24982952]
[1772701107260,1.817,2116.3,2116.2,1.70313051]
[1772701107578,5.90692114,2116.4,2116.2,1.70313051]
[1772701107881,1.817,2116.3,2116.2,1.70313051]
[1772701109171,1.818,2116.3,2116.2,1.70313051]
[1772701111063,0.002,2116.5,2116.3,2.4844226]
[1772701111264,1.819,2116.4,2116.3,2.4844226]
[1772701111467,0.002,2116.5,2116.3,2.4844226]
[1772701111687,1.821,2116.5,2116.3,2.4844226]
[1772701111859,0.002,2116.5,2116.3,2.4844226]
[1772701113270,0.002,2116.5,2116.4,2.4844226]
[1772701113800,0.002,2116.6,2116.4,2.4844226]
[1772701114593,0.002,2116.5,2116.4,2.4844226]
[1772701115263,0.002,2116.5,2116.4,3.66567378]
[1772701118180,0.002,2116.6,2116.5,2.4844226]
[1772701118786,0.002,2116.6,2116.3,1.18126436]
[1772701118995,0.002,2116.6,2116.4,2.4844226]
[1772701119294,0.002,2116.6,2116.3,3.66568696]
[1772701119494,2.53909802,2116.6,2116.3,3.66568696]
[1772701120677,2.53909802,2116.6,2116.3,2.4844226]
[1772701121284,2.53909802,2116.6,2116.3,3.66572939]
[1772701123402,3.71751258,2118.0,2116.6,2.4844226]
[1772701123702,2.53709802,2117.8,2116.9,2.4844226]
[1772701124105,1.825,2117.7,2116.9,2.4844226]
[1772701124472,2.53709802,2117.8,2117.1,2.4844226]
[1772701124670,1.826,2117.7,2117.1,2.4844226]
[1772701125179,2.53709802,2117.9,2117.1,2.4844226]
[1772701125497,1.826,2117.8,2117.1,2.4844226]
[1772701126482,4.36309802,2117.8,2117.1,2.4844226]
[1772701126875,2.53709802,2117.7,2117.3,2.4844226]
[1772701127178,2.53709802,2117.7,2117.2,1.18080483]
[1772701127366,2.53709802,2117.7,2117.2,3.66522743]
[1772701128466,0.002,2117.6,2117.2,3.66522743]
[1772701130009,0.002,2117.6,2117.3,2.78473633]
[1772701130304,1.828,2117.6,2117.3,2.78473633]
[1772701132218,1.828,2117.6,2117.3,3.9654519]
[1772701133809,0.002,2117.6,2117.3,3.9654519]
[1772701133978,1.828,2117.6,2117.3,3.9654519]
[1772701134979,0.002,2117.6,2117.3,3.9654519]
[1772701135291,1.828,2117.6,2117.3,3.9654519]
[1772701135609,4.57362486,2117.6,2117.3,1.18071557]
[1772701136080,4.57362486,2117.6,2117.3,3.9654519]
[1772701136615,5.50111622,2119.2,2117.5,2.78473633]
[1772701136788,2.74562486,2119.0,2117.6,2.78473633]
[1772701137320,2.74562486,2118.8,2117.6,2.78473633]
[1772701138601,2.74562486,2118.6,2117.7,1.18052604]
[1772701138911,2.74562486,2118.4,2117.8,2.78473633]
[1772701139099,2.74562486,2118.4,2117.6,3.96527395]
[1772701139284,2.74562486,2118.2,2117.5,1.18060608]
[1772701139486,2.74562486,2118.2,2117.5,3.96534241]
[1772701139684,0.32807746,2118.1,2117.5,3.96537026]
[1772701139889,3.07370232,2118.1,2117.5,3.96537026]
[1772701140120,3.07370232,2118.1,2117.5,2.78473633]
[1772701140497,4.57162486,2118.0,2117.5,2.78473633]
[1772701140700,3.92603942,2117.9,2117.3,3.96544523]
[1772701140899,4.25411688,2117.9,2117.3,3.96544523]
[1772701141224,4.25411688,2117.9,2117.1,3.96556063]
[1772701141225,2.74562486,2117.8,2117.1,3.96556063]
[1772701141792,3.07370232,2117.7,2117.1,3.96556063]
[1772701142402,0.32807746,2117.6,2117.1,3.96556063]
[1772701142921,1.50867614,2117.6,2117.1,3.96556063]
[1772701143905,4.254301,2117.6,2117.1,3.96556063]
[1772701144735,4.254301,2117.6,2117.1,3.96559556]
[1772701145094,4.254301,2117.6,2117.1,2.78473633]
[1772701145296,2.74562486,2117.5,2116.9,2.78573633]
[1772701145498,1.50867614,2117.6,2116.9,2.78573633]
[1772701145499,4.56962486,2117.4,2116.9,2.78573633]
[1772701145919,3.07370232,2117.3,2116.9,0.001]
[1772701147025,3.00480483,2117.2,2116.9,0.001]
[1772701147526,3.00480483,2117.2,2116.6,3.96683138]
[1772701147527,3.07370232,2117.1,2116.6,0.001]
[1772701148109,1.824,2117.0,2116.6,0.001]
[1772701148621,2.74562486,2117.0,2116.6,0.001]
[1772701148814,4.89770232,2116.9,2116.6,0.001]
[1772701149014,1.18102796,2116.8,2116.6,0.001]
[1772701149324,1.824,2116.7,2116.6,0.001]
[1772701150424,3.9265422,2117.0,2116.6,0.001]
[1772701150617,2.15207746,2116.9,2116.6,0.001]
[1772701151425,3.33309308,2116.9,2116.6,0.001]
[1772701153806,1.824,2116.9,2116.7,2.78473633]
[1772701155019,1.824,2116.9,2116.6,2.78573633]
[1772701155610,0.32807746,2116.8,2116.6,2.78573633]
[1772701155932,0.26807746,2116.8,2116.6,3.96682163]
[1772701157106,7.72876519,2116.9,2116.6,3.96682163]
[1772701157317,1.824,2116.9,2116.6,3.96682163]
[1772701159508,2.74562486,2117.1,2116.6,3.96682163]
[1772701159808,7.72876519,2117.0,2116.6,3.96682163]
[1772701160019,7.72876519,2117.0,2116.7,2.87292936]
[1772701160833,1.824,2116.9,2116.7,2.87292936]
[1772701161553,0.72391762,2116.9,2116.7,2.87292936]
[1772701161855,1.18073791,2117.4,2116.9,2.87292936]
[1772701162062,1.824,2117.2,2116.9,2.87292936]
[1772701163430,4.67817835,2117.2,2116.8,1.18102796]
[1772701163748,5.90476519,2117.1,2116.8,1.18102796]
[1772701164547,5.90476519,2117.1,2116.8,2.87292936]
[1772701165250,8.75894354,2117.1,2116.6,2.87392936]
[1772701165430,5.90476519,2117.1,2116.6,2.87392936]
[1772701165628,4.03479517,2117.6,2116.6,2.87392936]
[1772701165944,1.824,2117.2,2116.6,2.87392936]
[1772701166515,1.824,2117.2,2116.8,2.87292936]
[1772701166718,4.72188894,2117.8,2116.8,2.87292936]
[1772701166719,2.85417835,2117.8,2116.8,2.87292936]
[1772701166946,2.85417835,2117.6,2116.8,2.87292936]
[1772701167544,2.67446679,2117.4,2116.8,2.87292936]
[1772701169044,2.67446679,2117.4,2117.0,2.89224702]
[1772701169852,7.08541819,2117.5,2117.0,2.89224702]
[1772701171056,9.75988498,2117.5,2117.0,2.89224702]
[1772701171226,9.75988498,2117.5,2117.1,1.18086061]
[1772701171557,0.002,2117.2,2117.1,1.18086061]
[1772701172351,5.90676519,2117.2,2117.1,1.18086061]
[1772701172551,7.73076519,2117.2,2117.1,1.18086061]
[1772701174228,1.18064279,2117.5,2117.1,4.07310763]
[1772701174556,1.825,2117.4,2117.1,4.07310763]
[1772701175860,1.825,2117.4,2117.1,2.89224702]
[1772701176050,4.49946679,2117.4,2117.1,2.89224702]
[1772701176732,2.67446679,2117.4,2117.1,2.89224702]
[1772701176931,1.825,2117.3,2117.1,2.89224702]
[1772701177662,1.825,2117.3,2117.0,1.180875]
[1772701177867,1.825,2117.3,2117.0,4.07312202]
[1772701179643,2.67446679,2117.2,2116.8,2.89324702]
[1772701179966,2.67446679,2117.2,2116.8,4.07424972]
[1772701180661,4.50146679,2117.1,2116.8,4.07424972]
[1772701180848,4.50146679,2117.1,2116.8,4.07427394]
[1772701181755,2.67446679,2117.0,2116.8,0.001]
[1772701182543,1.827,2117.1,2116.8,4.07427014]
[1772701182749,4.50146679,2117.1,2116.8,4.07427014]
[1772701184167,2.67446679,2117.0,2116.8,0.001]
[1772701184356,1.827,2117.1,2116.8,4.07426757]
[1772701184549,4.50146679,2117.1,2116.8,4.07426757]
[1772701185267,4.50146679,2117.1,2117.0,0.001]
[1772701186773,4.50246679,2117.1,2117.0,0.001]
[1772701188571,0.002,2117.2,2117.0,0.001]
[1772701188755,1.829,2117.1,2117.0,0.001]
[1772701190479,1.829,2117.1,2117.0,1.18191639]
[1772701190968,2.829,2117.1,2117.0,1.18191639]
[1772701191971,1.0,2117.1,2117.0,1.18191639]
[1772701192285,2.829,2117.1,2117.0,1.18191639]
[1772701193381,1.0,2117.1,2117.0,1.18191639]
[1772701193571,2.83,2117.1,2117.0,1.18191639]
[1772701194778,1.83,2117.1,2117.0,1.18191639]
[1772701194952,1.83,2117.1,2117.0,3.850012]
[1772701195153,1.832,2117.2,2117.0,3.850012]
[1772701195353,0.002,2117.2,2117.0,3.850012]
[1772701195811,0.002,2117.2,2117.1,2.66809561]
[1772701196683,2.89628175,2117.5,2117.1,2.66809561]
[1772701197083,0.002,2117.5,2117.1,2.66809561]
[1772701197457,0.002,2117.5,2117.3,2.66809561]
[1772701198268,4.72528175,2117.8,2117.3,2.66809561]
[1772701199557,2.89428175,2117.8,2117.5,2.66809561]
[1772701199760,1.831,2117.8,2117.5,2.66809561]
[1772701200362,4.72528175,2118.1,2117.5,2.66809561]
[1772701200562,4.72528175,2118.1,2117.4,3.84878891]
[1772701200563,2.89428175,2118.0,2117.4,3.84878891]
[1772701200797,2.89428175,2117.9,2117.3,1.1807039]
[1772701200993,2.89428175,2117.9,2117.3,3.84879951]
[1772701201197,2.89428175,2117.9,2117.3,1.1807039]
[1772701201361,2.89428175,2117.7,2117.2,0.001]
[1772701201562,2.89428175,2117.7,2117.2,1.18180417]
[1772701201884,2.89428175,2117.7,2117.2,0.001]
[1772701202055,2.89428175,2117.5,2117.2,0.001]
[1772701205291,4.72528175,2117.4,2117.2,0.001]
[1772701206294,2.89428175,2117.4,2117.2,0.001]
[1772701206487,1.831,2117.7,2117.2,2.66909561]
[1772701208066,4.72528175,2117.7,2117.2,2.66909561]
[1772701208868,2.89428175,2117.7,2117.3,3.84884467]
[1772701209206,2.89428175,2117.7,2117.4,2.66809561]
[1772701209883,2.89428175,2117.7,2117.3,1.18074906]
[1772701210595,2.89428175,2117.7,2117.2,1.18180104]
[1772701210778,2.89428175,2117.6,2117.2,1.18180395]
[1772701211582,2.89428175,2117.6,2117.2,0.001]
[1772701211892,2.89428175,2117.5,2117.2,0.001]
[1772701212193,2.89428175,2117.5,2117.1,0.001]
[1772701212194,2.89628175,2117.5,2117.1,0.001]
[1772701212381,2.89628175,2117.5,2116.8,0.001]
[1772701212770,2.89628175,2117.5,2116.9,0.001]
[1772701213364,2.89428175,2117.3,2116.9,0.001]
[1772701213569,2.89428175,2117.1,2116.9,0.001]
[1772701214682,4.72428175,2117.1,2116.9,0.001]
[1772701217299,2.89428175,2116.9,2116.6,0.001]
[1772701217502,1.83,2116.8,2116.6,0.001]
[1772701218024,4.72457311,2117.5,2116.6,0.001]
[1772701218025,0.002,2117.5,2116.8,2.66809561]
[1772701218183,0.002,2117.5,2117.0,2.21651385]
[1772701218379,0.002,2117.5,2117.1,2.66809561]
[1772701219513,0.002,2117.5,2117.2,1.18080483]
[1772701219718,0.002,2117.5,2117.1,3.84891681]
[1772701220918,0.002,2117.5,2117.2,2.91033505]
[1772701221590,0.002,2117.5,2117.3,1.18074906]
[1772701221821,0.002,2117.5,2117.2,4.09109552]
[1772701222720,2.89194174,2117.5,2116.8,1.18102796]
[1772701222901,2.89194174,2117.5,2116.8,4.09136301]
[1772701223302,2.89194174,2117.5,2116.9,2.91033505]
[1772701223702,2.89194174,2117.5,2117.0,4.09125144]
[1772701224114,0.002,2117.7,2117.1,2.91033505]
[1772701224314,2.88994174,2118.2,2117.1,2.91033505]
[1772701224488,2.88994174,2118.1,2117.1,2.91033505]
[1772701224692,2.88994174,2118.1,2117.2,2.91033505]
[1772701225895,2.88994174,2118.0,2117.3,1.18074906]
[1772701226293,0.002,2117.5,2117.3,1.18074906]
[1772701226492,2.88994174,2117.8,2117.3,4.09108411]
[1772701226889,2.89194174,2117.8,2117.3,4.09108411]
[1772701228305,0.002,2117.8,2117.4,2.91033505]
[1772701229895,0.002,2117.8,2117.5,3.79167991]
[1772701231223,0.00042833,2117.8,2117.5,3.79167991]
[1772701231436,0.00042833,2117.8,2117.6,2.61104237]
[1772701232127,0.00042833,2117.8,2117.7,1.18052604]
[1772701235228,0.00042833,2117.8,2117.7,3.79156841]
[1772701235424,0.00042833,2117.8,2117.5,2.61104237]
[1772701236136,2.60994021,2118.4,2117.5,2.61104237]
[1772701236430,2.60994021,2119.0,2117.7,2.61104237]
[1772701236754,2.60994021,2118.8,2117.9,2.61104237]
[1772701237044,4.43494021,2119.0,2118.0,2.61104237]
[1772701237221,2.60994021,2118.9,2118.0,2.61104237]
[1772701238219,2.60994021,2118.8,2118.1,3.79134547]
[1772701238415,2.61194021,2118.8,2118.1,3.79134547]
[1772701238812,2.61194021,2118.8,2118.0,1.18035798]
[1772701240035,2.61194021,2118.8,2117.9,1.18137586]
[1772701240239,2.60994021,2118.6,2117.9,1.18137586]
[1772701240540,2.60994021,2118.6,2117.9,0.001]
[1772701240872,2.60994021,2118.6,2117.6,1.18158175]
[1772701242345,2.60994021,2118.4,2117.6,0.001]
[1772701242550,2.60994021,2118.2,2117.6,0.001]
[1772701244015,4.43194021,2118.1,2117.6,0.001]
[1772701244549,1.822,2118.3,2117.7,2.61104237]
[1772701245942,2.60994021,2118.6,2117.7,2.61104237]
[1772701246142,8.152,2118.7,2117.7,2.61104237]
[1772701246143,1.822,2118.7,2117.7,2.61104237]
[1772701246346,2.61194021,2118.8,2117.7,2.61104237]
[1772701246543,1.822,2118.7,2117.9,2.61104237]
[1772701246746,2.61194021,2118.8,2117.9,2.61104237]
[1772701246925,1.822,2118.7,2117.9,2.61104237]
[1772701248044,1.821,2118.7,2117.9,2.61104237]
[1772701248229,4.43294021,2118.8,2117.9,2.61104237]
[1772701248549,1.821,2118.7,2118.1,2.61104237]
[1772701248848,0.002,2118.8,2118.2,2.63988623]
[1772701250550,0.002,2118.8,2118.4,2.63988623]
[1772701251548,2.77498004,2118.8,2118.3,1.18019166]
[1772701252252,2.77498004,2118.8,2118.3,3.82007789]
[1772701252451,0.002,2118.6,2118.3,3.82007789]
[1772701252623,0.002,2118.6,2118.3,1.18019166]
[1772701252824,2.77498004,2118.6,2118.2,1.18020438]
[1772701253638,2.77498004,2118.6,2118.1,3.82015349]
[1772701253840,2.77498004,2118.6,2118.0,1.18032022]
[1772701254232,2.77298004,2118.5,2118.0,1.18032022]
[1772701254960,0.002,2118.8,2118.1,2.63988623]
[1772701257134,0.002,2118.8,2118.3,2.63988623]
[1772701258958,0.002,2119.0,2118.3,2.63988623]
[1772701259260,3.57168823,2119.5,2118.3,2.63988623]
[1772701259261,2.77298004,2119.5,2118.5,2.63988623]
[1772701260059,2.77298004,2119.4,2118.5,2.63988623]
[1772701260433,4.57798004,2119.4,2118.5,2.63988623]
[1772701260634,2.77298004,2119.3,2118.5,2.63988623]
[1772701261243,2.77298004,2119.3,2118.6,3.81991077]
[1772701261541,2.77298004,2119.3,2118.4,4.7204841]
[1772701261542,2.77298004,2119.2,2118.4,4.7204841]
[1772701261859,2.77298004,2119.2,2118.1,1.18026044]
[1772701262466,2.77298004,2119.0,2118.1,1.18026044]
[1772701262655,2.77298004,2119.0,2118.1,3.82014667]
[1772701263387,2.77298004,2118.8,2118.1,1.18026044]
[1772701264172,2.77298004,2118.8,2118.0,1.18032046]
[1772701264476,2.77298004,2118.8,2117.9,1.18137284]
[1772701265148,2.77298004,2119.4,2118.2,2.63988623]
[1772701265358,2.77298004,2119.1,2118.0,1.18031545]
[1772701265972,2.77298004,2119.1,2118.1,0.001]
[1772701266158,0.002,2118.6,2118.1,2.64088623]
[1772701266558,2.77498004,2118.6,2118.1,0.001]
[1772701268181,2.77498004,2118.6,2117.9,4.7225129]
[1772701268182,2.77298004,2118.5,2117.9,0.001]
[1772701268660,2.77298004,2118.4,2117.9,1.18140275]
[1772701269249,2.77298004,2118.4,2117.9,3.82128898]
[1772701270846,2.77498004,2118.6,2117.9,3.82128898]
[1772701271274,0.002,2118.6,2118.0,2.63988623]
[1772701271572,2.77498004,2118.8,2118.0,2.63988623]
[1772701271573,0.002,2118.8,2118.0,2.63988623]
[1772701271988,3.95255312,2119.5,2118.0,2.63988623]
[1772701272152,2.77298004,2119.4,2118.0,3.14748889]
[1772701272349,2.77298004,2119.4,2118.2,2.63988623]
[1772701272551,2.77298004,2119.4,2118.4,2.63988623]
[1772701272758,4.56798004,2119.6,2118.4,2.63988623]
[1772701273162,2.77298004,2119.6,2118.4,2.63988623]
[1772701273645,3.95244894,2119.6,2118.4,2.63988623]
[1772701273851,2.77298004,2119.6,2118.4,2.63988623]
[1772701274080,3.9524496,2119.6,2118.4,2.63988623]
[1772701274382,2.77298004,2119.6,2118.4,2.63988623]
[1772701274572,2.77298004,2119.6,2118.5,1.18008024]
[1772701274881,2.77298004,2119.6,2118.6,2.63988623]
[1772701275071,1.17947494,2119.6,2118.6,2.63988623]
[1772701275266,2.77298004,2119.5,2118.6,2.63988623]
[1772701276682,2.77298004,2119.5,2118.7,1.17996884]
[1772701276859,2.77298004,2119.4,2118.7,1.17996884]
[1772701279493,1.17963478,2119.3,2118.6,4.71987539]
[1772701279658,2.78980233,2119.2,2118.6,4.71987539]
[1772701279856,2.79180233,2119.2,2118.6,4.71987539]
[1772701280260,2.79180233,2119.2,2118.6,7.50284324]
[1772701281588,0.002,2119.2,2118.9,2.78296785]
[1772701282206,0.002,2119.4,2118.9,2.78296785]
[1772701282556,3.96911015,2119.9,2118.9,2.78296785]
[1772701283655,2.78980233,2119.8,2119.1,2.78296785]
[1772701283859,2.78980233,2119.8,2118.8,3.96283773]
[1772701284855,2.78980233,2119.8,2118.8,1.17986988]
[1772701285061,2.78980233,2119.6,2118.8,3.96283773]
[1772701285783,1.17952347,2119.5,2118.9,2.78296785]
[1772701286201,3.9693258,2119.5,2118.9,2.78296785]
[1772701286802,2.78980233,2119.4,2118.7,2.78296785]
[1772701288505,3.75401486,2119.3,2118.8,1.17991315]
[1772701288802,2.57438008,2119.2,2118.7,1.17996845]
[1772701290279,2.57438008,2119.3,2118.8,2.69144353]
[1772701290479,3.75405965,2119.3,2118.7,3.87141198]
[1772701290679,2.57438008,2119.2,2118.7,1.17996845]
[1772701290901,2.57438008,2119.2,2118.6,1.17998936]
[1772701291285,2.57438008,2119.2,2118.6,3.87143289]
[1772701291481,1.17963954,2119.3,2118.7,2.69144353]
[1772701292400,2.57438008,2119.3,2118.7,2.69144353]
[1772701292589,3.75402003,2119.3,2118.8,1.17991315]
[1772701292788,2.57438008,2119.3,2118.8,1.17991315]
[1772701293080,2.98361121,2119.4,2118.8,3.87135668]
[1772701293481,3.75399129,2119.4,2118.8,3.87135668]
[1772701293707,5.55799129,2119.4,2118.8,3.87135668]
[1772701294007,5.55799129,2119.4,2118.9,0.001]
[1772701294308,0.002,2119.2,2118.9,0.001]
[1772701294506,0.002,2119.2,2118.9,2.69244353]
[1772701294681,0.002,2119.2,2118.9,3.87224659]
[1772701296911,0.002,2119.2,2119.0,2.69144353]
[1772701297812,0.002,2119.2,2118.9,1.18080306]
[1772701298884,0.002,2119.2,2118.9,0.001]
[1772701299106,2.57638008,2119.2,2118.9,0.001]
[1772701299406,0.002,2119.2,2118.9,0.001]
[1772701299589,0.002,2119.2,2118.9,2.69244353]
[1772701301215,5.55876849,2119.8,2119.1,2.69144353]
[1772701301707,2.57438008,2119.7,2119.1,2.69144353]
[1772701301913,2.57438008,2119.7,2119.0,1.17980179]
[1772701303306,2.57438008,2119.5,2118.9,7.4116507]
[1772701303806,2.57438008,2119.5,2118.9,0.001]
[1772701305313,3.7539592,2119.4,2118.9,0.001]
[1772701305699,2.57438008,2119.3,2118.9,0.001]
[1772701308407,4.38038008,2119.3,2118.9,0.001]
[1772701308724,1.806,2119.3,2119.0,2.54931839]
[1772701308906,1.808,2119.3,2119.0,2.54931839]
[1772701309527,0.002,2119.3,2119.0,2.54931839]
[1772701311836,0.002,2119.3,2119.1,2.54831839]
[1772701312522,0.002,2119.3,2119.1,3.72805508]
[1772701312719,0.002,2119.3,2119.2,2.54831839]
[1772701314125,0.002,2119.3,2119.0,3.72908044]
[1772701316942,0.002,2119.3,2119.1,2.54831839]
[1772701318937,2.57031627,2119.9,2119.2,2.54831839]
[1772701319142,2.57031627,2119.8,2119.2,2.54831839]
[1772701319438,4.37931627,2119.8,2119.2,2.54831839]
[1772701319618,2.57031627,2119.6,2119.0,0.001]
[1772701319939,2.57031627,2119.6,2119.0,1.18080162]
[1772701320342,2.57031627,2119.6,2119.0,3.72912001]
[1772701320911,1.809,2119.6,2119.3,2.54831839]
[1772701321434,2.57031627,2119.5,2119.1,1.17970783]
[1772701321625,2.57031627,2119.8,2119.1,2.54831839]
[1772701321833,2.57031627,2119.7,2119.1,2.54831839]
[1772701322036,2.57031627,2119.7,2119.1,2.54931839]
[1772701322221,0.002,2119.4,2119.1,2.54931839]
[1772701323012,0.002,2119.4,2119.3,2.54831839]
[1772701323217,3.7496224,2119.9,2119.4,2.54831839]
[1772701323816,0.1648412,2120.2,2119.4,2.54831839]
[1772701324551,2.57031627,2120.1,2119.4,2.54831839]
[1772701324847,0.1648412,2120.2,2119.4,2.54831839]
[1772701325246,2.57031627,2120.1,2119.5,3.72784186]
[1772701325547,1.34398004,2120.2,2119.5,3.72784186]
[1772701325548,1.34398004,2120.2,2119.6,2.54831839]
[1772701326043,2.57031627,2120.1,2119.5,3.72784186]
[1772701326544,2.57031627,2120.1,2119.5,2.54831839]
[1772701326926,2.57031627,2120.1,2119.3,1.17960003]
[1772701327128,2.57031627,2120.1,2119.4,2.54831839]
[1772701327325,3.74955234,2120.1,2119.6,2.54831839]
[1772701327550,2.57031627,2120.1,2119.6,2.54831839]
[1772701327718,3.74950668,2120.1,2119.6,2.54831839]